fUSD/lending_fUSD_20251013
["ID","MTS","AMOUNT","RATE_DAILY","PERIOD"]
[391087783,1760315440419,-4432.26839026,0.00015,2]
[391087784,1760315440431,-38173.71201556,0.00015,2]
[391087785,1760315440442,-1363.68834929,0.00015,2]
[391087786,1760315440453,-11958.9131768,0.00015,2]
[391087787,1760315440464,-3829.98099585,0.00015,2]
[391087788,1760315440475,-28460.52991235,0.00015,2]
[391087789,1760315440486,-71726.40361439,0.00015,2]
[391087790,1760315440498,-4320.0,0.00015,2]
[391087791,1760315440509,-32196.55086,0.00015,2]
[391087814,1760315444002,-560.47152291,0.00015,2]
[391087815,1760315444014,-263.58446541,0.00015,2]
[391087816,1760315444026,-636.41553459,0.00015,2]
[391087817,1760315444037,-1571.83361721,0.00015,2]
[391087818,1760315444051,-1874.09196623,0.00015,2]
[391087819,1760315444063,-24721.28672805,0.00015,2]
[391087820,1760315444075,-5250.63907943,0.00015,2]
[391087821,1760315444087,-6855.90067227,0.00015,2]
[391087822,1760315444100,-1180.02267107,0.00015,2]
[391087823,1760315444112,-28263.56343333,0.00015,2]
[391087830,1760315446171,-263.76441641,0.00015,2]
[391087831,1760315446281,-995.60000007,0.00015,2]
[391087832,1760315446388,-967.51168473,0.00015,2]
[391087833,1760315446444,-387491.44738469,0.00015,2]
[391087843,1760315630586,162.74,9.661e-05,2]
[391087844,1760315630793,162.74,0.00011594,2]
[391087846,1760316135713,1055.15314,0.000273,120]
[391087847,1760316140048,1055.15311,0.000273,120]
[391087848,1760316147185,1758.58852,0.000273,120]
[391087849,1760316155267,1055.15311,0.000273,120]
[391087850,1760316190917,1758.58852,0.000273,120]
[391087851,1760316198529,1055.15311,0.000273,120]
[391087852,1760316203825,1055.15311,0.000273,120]
[391087870,1760316632368,-288.209999,0.00013395,2]
[391087871,1760316632381,-727.69814,0.00013395,2]
[391087872,1760316632390,-1955.17357954,0.00013462,2]
[391087873,1760316632402,-44.82642046,0.00013462,2]
[391087874,1760316632410,-410.40575635,0.00013501,2]
[391087875,1760316632421,-1589.59424365,0.00013501,2]
[391087876,1760316632430,-162.74,0.00013526,2]
[391087877,1760316632439,-878.03,0.00013699,2]
[391087878,1760316632450,-423.10586899,0.00013776,2]
[391087879,1760316632464,-1254.98413101,0.00013776,2]
[391087880,1760316632473,-1200.0,0.00013813,2]
[391087881,1760316632482,-200.0,0.00013814,2]
[391087882,1760316632491,-300.0,0.00013854,2]
[391087883,1760316632500,-300.0,0.00013854,2]
[391087884,1760316632509,-300.0,0.00013854,2]
[391087885,1760316632519,-1200.0,0.00013855,2]
[391087886,1760316632530,-247.0,0.00013855,2]
[391087887,1760316632541,-250.0,0.00013946,2]
[391087888,1760316632551,-15060.56,0.00013991,2]
[391087889,1760316632561,-666.0,0.00014004,3]
[391087890,1760316632574,-18312.83,0.00014038,2]
[391087891,1760316632585,-200.0,0.00014066,2]
[391087892,1760316632594,-250.0,0.00014444,7]
[391087893,1760316632604,-150.0,0.00014719,2]
[391087894,1760316632615,-2169.85571834,0.00014741,2]
[391087895,1760316632625,-150.0,0.00014766,2]
[391087896,1760316632634,-2000.0,0.00014767,2]
[391087897,1760316632643,-150.0,0.00014767,2]
[391087898,1760316632652,-250.0,0.00014767,2]
[391087899,1760316632662,-250.0,0.00014767,2]
[391087900,1760316632670,-2000.0,0.00014767,2]
[391087901,1760316632680,-300.0,0.00014767,2]
[391087902,1760316632689,-150.0,0.00014767,2]
[391087903,1760316632699,-1500.0,0.00014833,2]
[391087905,1760316632708,-300.39839846,0.00014841,2]
[391087907,1760316632718,-2000.0,0.00014841,2]
[391087909,1760316632727,-300.0,0.0001486,2]
[391087911,1760316632736,-625.902,0.00014879,2]
[391087913,1760316632746,-200.0,0.00014891,2]
[391087915,1760316632756,-195.8742825,0.00014891,2]
[391087917,1760316632765,-151.0,0.00014891,2]
[391087919,1760316632775,-151.0,0.00014891,2]
[391087921,1760316632784,-151.0,0.00014891,2]
[391087923,1760316632794,-151.0,0.00014891,2]
[391087925,1760316632803,-500.0,0.00014891,2]
[391087927,1760316632812,-151.0,0.00014891,2]
[391087929,1760316632831,-151.0,0.00014891,2]
[391087931,1760316632840,-500.0,0.00014891,2]
[391087934,1760316632850,-151.0,0.00014891,2]
[391087936,1760316632859,-500.0,0.00014891,2]
[391087937,1760316632868,-151.0,0.00014891,2]
[391087938,1760316632881,-500.0,0.00014891,2]
[391087939,1760316632891,-151.0,0.00014891,2]
[391087941,1760316632900,-500.0,0.00014891,2]
[391087942,1760316632909,-500.0,0.00014891,2]
[391087943,1760316632919,-151.0,0.00014891,2]
[391087944,1760316632928,-500.0,0.00014891,2]
[391087945,1760316632937,-151.0,0.00014891,2]
[391087946,1760316632947,-500.0,0.00014891,2]
[391087947,1760316632957,-151.0,0.00014891,2]
[391087948,1760316632966,-500.0,0.00014891,2]
[391087949,1760316632976,-151.0,0.00014891,2]
[391087950,1760316632986,-500.0,0.00014891,2]
[391087951,1760316632996,-151.0,0.00014891,2]
[391087952,1760316633005,-500.0,0.00014891,2]
[391087953,1760316633015,-151.0,0.00014891,2]
[391087954,1760316633025,-500.0,0.00014891,2]
[391087955,1760316633034,-151.0,0.00014891,2]
[391087956,1760316633044,-500.0,0.00014891,2]
[391087957,1760316633054,-151.0,0.00014891,2]
[391087958,1760316633063,-151.0,0.00014891,2]
[391087959,1760316633074,-151.0,0.00014891,2]
[391087960,1760316633083,-151.0,0.00014891,2]
[391087961,1760316633094,-151.0,0.00014891,2]
[391087962,1760316633103,-200.0,0.00014891,2]
[391087963,1760316633113,-151.0,0.00014891,2]
[391087964,1760316633126,-151.0,0.00014891,2]
[391087965,1760316633143,-151.0,0.00014891,2]
[391087966,1760316633160,-151.0,0.00014891,2]
[391087967,1760316633169,-151.0,0.00014891,2]
[391087968,1760316633180,-151.0,0.00014891,2]
[391087969,1760316633189,-151.0,0.00014891,2]
[391087970,1760316633199,-151.0,0.00014891,2]
[391087971,1760316633209,-151.0,0.00014891,2]
[391087972,1760316633218,-151.0,0.00014891,2]
[391087973,1760316633228,-151.0,0.00014891,2]
[391087974,1760316633237,-151.0,0.00014891,2]
[391087975,1760316633246,-300.14373583,0.00014891,2]
[391087976,1760316633598,-151.0,0.00014891,2]
[391087977,1760316633639,-151.0,0.00014891,2]
[391087978,1760316633653,-151.0,0.00014891,2]
[391087979,1760316633662,-151.0,0.00014891,2]
[391087980,1760316633672,-200.0,0.00014891,2]
[391087981,1760316633682,-151.0,0.00014891,2]
[391087982,1760316633692,-151.0,0.00014891,2]
[391087983,1760316633701,-151.0,0.00014891,2]
[391087984,1760316633710,-151.0,0.00014891,2]
[391087985,1760316633719,-151.0,0.00014891,2]
[391087986,1760316633729,-151.0,0.00014891,2]
[391087987,1760316633738,-151.0,0.00014891,2]
[391087988,1760316633747,-151.0,0.00014891,2]
[391087989,1760316633757,-151.0,0.00014891,2]
[391087990,1760316633766,-296.9394,0.000149,2]
[391087991,1760316633776,-4050.4157,0.000149,2]
[391087992,1760316633785,-2132.2009,0.000149,2]
[391087993,1760316633794,-5009.1955,0.000149,2]
[391087994,1760316633804,-2803.64217664,0.000149,2]
[391087995,1760316633813,-1325.80052793,0.000149,2]
[391087996,1760316633822,-500.0,0.00014973,2]
[391087997,1760316633832,-500.31118125,0.00014973,2]
[391087998,1760316633842,-500.0,0.00014973,2]
[391087999,1760316633852,-500.0,0.00014973,2]
[391088000,1760316633862,-522.85370292,0.00014973,2]
[391088001,1760316633871,-169.86432506,0.00014973,2]
[391088002,1760316633881,-500.0,0.00014973,2]
[391088003,1760316633890,-500.0,0.00014973,2]
[391088004,1760316633900,-500.0,0.00014973,2]
[391088005,1760316633909,-500.0,0.00014973,2]
[391088006,1760316633918,-500.0,0.00014973,2]
[391088007,1760316633927,-165.58082002,0.0001499,2]
[391088008,1760316633936,-876.52,0.00014991,2]
[391088009,1760316633946,-500.0,0.00014999,2]
[391088010,1760316633955,-174.57171965,0.00014999,2]
[391088011,1760316633965,-500.0,0.00014999,2]
[391088012,1760316633974,-429.75552505,0.00014999,2]
[391088013,1760316633983,-596.47680381,0.00014999,2]
[391088014,1760316633992,-197.09590172,0.00014999,2]
[391088015,1760316634005,-300.82886753,0.00014999,2]
[391088016,1760316634015,-150.0,0.00014999,2]
[391088017,1760316634024,-1000.0,0.00014999,2]
[391088018,1760316634033,-780.81620026,0.00014999,2]
[391088019,1760316634045,-26562.18776574,0.00015,2]
[391088020,1760316634058,-48469.20873665,0.00015,2]
[391088021,1760316634072,-49803.52036984,0.00015,2]
[391088022,1760316634084,-266.92376967,0.00015,2]
[391088023,1760316634097,-3631.7649521,0.00015,2]
[391088024,1760316634109,-871.0,0.00015,2]
[391088025,1760316634123,-1605.89447669,0.00015,2]
[391088026,1760316634134,-14677.30510712,0.00015,2]
[391088027,1760316634145,-4520.00000004,0.00015,2]
[391088028,1760316634160,-4595.60667368,0.00015,2]
[391088041,1760316638384,-20195.0,0.00015,2]
[391088223,1760316640554,-31828.7839419,0.00015,2]
[391088293,1760316641188,-10813.28175338,0.00015,2]
[391088296,1760316641203,-176219.38266899,0.00015,2]
[391088563,1760316643856,-57665.0,0.00015,2]
[391088566,1760316643867,-79287.95490241,0.00015,2]
[391088568,1760316643877,-327214.11233809,0.00015,2]
[391088570,1760316643889,-69527.42385401,0.00015,2]
[391088572,1760316643901,-26041.95101976,0.00015,2]
[391088574,1760316643913,-25304.71960635,0.00015,2]
[391088637,1760316646335,-3454.00223493,0.00015,2]
[391088638,1760316646349,-1100.6148895,0.00015,2]
[391088639,1760316646439,-8274.99995864,0.00015,2]
[391088640,1760316646450,-978.26821463,0.00015,2]
[391088644,1760316669194,1600.0,0.00024727,120]
[391088645,1760316669416,1600.0,0.00026975,120]
[391088647,1760316846764,500.0,0.000267,120]
[391088648,1760316876942,3254.44,0.00027397,120]
[391088649,1760316877698,368.0,0.00027,120]
[391088650,1760316899584,347.0618967,0.00027397,120]
[391088654,1760317306991,-177.07,0.00013699,2]
[391088655,1760317307647,-159.03,0.00013699,2]
[391088656,1760317579681,40.97,0.00010959,2]
[391088657,1760317579710,445.42123589,0.00010959,2]
[391088658,1760317621178,263.64363431,0.00013622,2]
[391088663,1760317831548,-704.44538148,0.00013622,2]
[391088664,1760317831562,-1387.20657822,0.00013622,2]
[391088666,1760317831660,-4580.58440599,0.00013622,2]
[391088667,1760317831670,-250.0,0.00013631,2]
[391088668,1760317831679,-1200.0,0.00013641,2]
[391088669,1760317831688,-2000.0,0.00013642,2]
[391088670,1760317831698,-250.0,0.00013646,2]
[391088671,1760317831707,-300.0,0.00013661,2]
[391088672,1760317831716,-300.0,0.00013661,2]
[391088673,1760317831725,-2000.0,0.00013662,2]
[391088674,1760317831735,-154.77,0.00013668,2]
[391088675,1760317831743,-3742.16,0.00013669,2]
[391088676,1760317831753,-2000.0,0.00013672,2]
[391088677,1760317831762,-1200.0,0.00013702,2]
[391088678,1760317831771,-198.0,0.00013752,2]
[391088679,1760317831781,-1015.31,0.00013832,2]
[391088680,1760317831790,-714.96,0.00013854,2]
[391088681,1760317831799,-458.16,0.00014347,2]
[391088682,1760317831808,-859.11923817,0.00014579,2]
[391088683,1760317831818,-1151.61,0.00014582,2]
[391088684,1760317831827,-150.0,0.00014849,2]
[391088685,1760317831835,-8391.7088061,0.0001485,2]
[391088686,1760317831844,-233.2482,0.00014859,2]
[391088687,1760317831853,-2049.6304,0.00014859,2]
[391088688,1760317831863,-1955.763,0.00014859,2]
[391088689,1760317831873,-5205.5894287,0.0001489,2]
[391088690,1760317831882,-176.09635743,0.000149,2]
[391088691,1760317831893,-638.08910498,0.000149,2]
[391088692,1760317831902,-156.74843359,0.000149,2]
[391088693,1760317831911,-166.26231215,0.000149,2]
[391088694,1760317831920,-1193.2204752,0.00014924,2]
[391088695,1760317831929,-160.4358871,0.00014939,2]
[391088696,1760317831938,-183.52729106,0.00014939,2]
[391088697,1760317831948,-151.0,0.0001495,2]
[391088698,1760317831958,-151.0,0.0001495,2]
[391088699,1760317831967,-151.0,0.0001495,2]
[391088700,1760317831978,-151.0,0.0001495,2]
[391088701,1760317831987,-151.0,0.0001495,2]
[391088702,1760317831997,-151.0,0.0001495,2]
[391088703,1760317832006,-151.0,0.0001495,2]
[391088704,1760317832015,-151.0,0.0001495,2]
[391088705,1760317832024,-200.0,0.0001495,2]
[391088706,1760317832033,-151.0,0.0001495,2]
[391088708,1760317832043,-151.0,0.0001495,2]
[391088709,1760317832052,-151.0,0.0001495,2]
[391088710,1760317832061,-151.0,0.0001495,2]
[391088711,1760317832070,-151.0,0.0001495,2]
[391088712,1760317832079,-151.0,0.0001495,2]
[391088714,1760317832089,-151.0,0.0001495,2]
[391088716,1760317832099,-151.0,0.0001495,2]
[391088718,1760317832108,-151.0,0.0001495,2]
[391088719,1760317832117,-151.0,0.0001495,2]
[391088720,1760317832127,-151.0,0.0001495,2]
[391088721,1760317832136,-151.0,0.0001495,2]
[391088722,1760317832146,-151.0,0.0001495,2]
[391088723,1760317832155,-151.0,0.0001495,2]
[391088724,1760317832165,-151.0,0.0001495,2]
[391088725,1760317832174,-151.0,0.0001495,2]
[391088726,1760317832183,-151.0,0.0001495,2]
[391088727,1760317832192,-151.0,0.0001495,2]
[391088728,1760317832201,-151.0,0.0001495,2]
[391088729,1760317832210,-151.0,0.0001495,2]
[391088730,1760317832219,-151.0,0.0001495,2]
[391088731,1760317832227,-151.0,0.0001495,2]
[391088732,1760317832237,-151.0,0.0001495,2]
[391088733,1760317832246,-151.0,0.0001495,2]
[391088734,1760317832255,-151.0,0.0001495,2]
[391088735,1760317832264,-151.0,0.0001495,2]
[391088736,1760317832273,-151.0,0.0001495,2]
[391088737,1760317832283,-200.0,0.0001495,2]
[391088738,1760317832292,-500.0,0.0001495,2]
[391088739,1760317832301,-500.0,0.0001495,2]
[391088740,1760317832310,-500.0,0.0001495,2]
[391088741,1760317832319,-500.0,0.0001495,2]
[391088742,1760317832329,-500.0,0.0001495,2]
[391088743,1760317832338,-500.0,0.0001495,2]
[391088744,1760317832347,-500.0,0.0001495,2]
[391088745,1760317832357,-500.0,0.0001495,2]
[391088746,1760317832366,-500.0,0.0001495,2]
[391088747,1760317832375,-500.0,0.0001495,2]
[391088748,1760317832384,-500.0,0.0001495,2]
[391088749,1760317832396,-500.0,0.0001495,2]
[391088750,1760317832407,-200.0,0.0001495,2]
[391088751,1760317832417,-2709.37594776,0.00014958,2]
[391088752,1760317832425,-82843.0,0.00014959,2]
[391088753,1760317832434,-420.0,0.00014972,2]
[391088754,1760317832443,-500.0,0.00014973,2]
[391088755,1760317832454,-500.0,0.00014973,2]
[391088756,1760317832463,-500.0,0.00014973,2]
[391088757,1760317832472,-500.0,0.00014973,2]
[391088758,1760317832482,-500.0,0.00014973,2]
[391088759,1760317832491,-160.21,0.0001498,2]
[391088760,1760317832502,-225.34794022,0.00014984,2]
[391088761,1760317832522,-195.0,0.00014984,2]
[391088762,1760317832542,-2000.0,0.00014984,2]
[391088763,1760317832553,-195.0,0.00014984,2]
[391088764,1760317832562,-2000.0,0.00014984,2]
[391088765,1760317832571,-300.0,0.00014984,2]
[391088766,1760317832580,-250.0,0.00014984,2]
[391088767,1760317832589,-195.0,0.00014984,2]
[391088768,1760317832598,-300.0,0.00014984,2]
[391088769,1760317832607,-300.0,0.00014984,2]
[391088770,1760317832617,-300.0,0.00014984,2]
[391088771,1760317832626,-300.0,0.00014984,2]
[391088772,1760317832635,-300.0,0.00014984,2]
[391088773,1760317832646,-300.0,0.00014984,2]
[391088774,1760317832656,-563.1107436,0.00014989,2]
[391088775,1760317832665,-500.0,0.00014989,2]
[391088776,1760317832674,-50516.047012,0.0001499,2]
[391088777,1760317832683,-160.21,0.0001499,2]
[391088778,1760317832693,-3618.43,0.0001499,2]
[391088779,1760317832703,-3618.43,0.0001499,2]
[391088780,1760317832712,-1175.12,0.00014991,2]
[391088781,1760317832721,-5647.08537561,0.00014994,2]
[391088782,1760317832731,-243.75704606,0.00014999,2]
[391088783,1760317832739,-5673.6364907,0.00014999,2]
[391088784,1760317832749,-520.21917564,0.00014999,2]
[391088785,1760317832758,-460.51672981,0.00014999,2]
[391088786,1760317832768,-666.0,0.00014999,2]
[391088787,1760317832777,-4697.692754,0.00015,2]
[391088788,1760317832786,-13281.09388287,0.00015,2]
[391088789,1760317832795,-175761.26550958,0.00015,2]
[391088790,1760317832808,-313.92303194,0.00015,2]
[391088791,1760317832819,-759.80301203,0.00015,2]
[391088792,1760317832830,-27888.02664947,0.00015,2]
[391088793,1760317832840,-27838.48162677,0.00015,2]
[391088794,1760317832851,-1283.79029395,0.00015,2]
[391088795,1760317837664,-58529.74529985,0.00015,2]
[391088796,1760317839683,-448.14729079,0.00015,2]
[391088797,1760317839698,-312.78633381,0.00015,2]
[391088861,1760317845692,-11541.88036179,0.00015,2]
[391088862,1760317845751,-801.0,0.00015,2]
[391088863,1760317845767,-6504.59040252,0.00015,2]
[391088867,1760318673813,279.0,0.00027397,120]
[391088873,1760318884349,-156.07441837,0.00013573,2]
[391088874,1760318884373,-174.751296,0.00013589,2]
[391088875,1760318884397,-2500.0,0.00013658,2]
[391088876,1760318884420,-300.0,0.00013659,2]
[391088877,1760318884442,-150.0,0.00013659,2]
[391088878,1760318884464,-1200.0,0.00013659,2]
[391088879,1760318884489,-300.0,0.00013659,2]
[391088880,1760318884514,-500.0,0.0001366,2]
[391088881,1760318884537,-500.0,0.0001366,2]
[391088882,1760318884561,-500.0,0.0001366,2]
[391088883,1760318884585,-500.0,0.0001366,2]
[391088884,1760318884609,-500.0,0.0001366,2]
[391088885,1760318884632,-500.0,0.0001366,2]
[391088886,1760318884655,-500.0,0.0001366,2]
[391088887,1760318884682,-500.0,0.0001366,2]
[391088888,1760318884707,-500.0,0.0001366,2]
[391088889,1760318884733,-500.0,0.0001366,2]
[391088890,1760318884757,-500.0,0.0001366,2]
[391088891,1760318884781,-500.0,0.0001366,2]
[391088892,1760318884805,-500.0,0.0001366,2]
[391088893,1760318884829,-500.0,0.0001366,2]
[391088894,1760318884852,-500.0,0.0001366,2]
[391088895,1760318884876,-500.0,0.0001366,2]
[391088896,1760318884900,-500.0,0.0001366,2]
[391088897,1760318884923,-500.0,0.0001366,2]
[391088898,1760318884947,-500.0,0.0001366,2]
[391088899,1760318884970,-500.0,0.0001366,2]
[391088900,1760318884994,-500.0,0.0001366,2]
[391088901,1760318885019,-500.0,0.0001366,2]
[391088902,1760318885044,-500.0,0.0001366,2]
[391088903,1760318885067,-500.0,0.0001366,2]
[391088904,1760318885094,-500.0,0.0001366,2]
[391088905,1760318885118,-500.0,0.0001366,2]
[391088906,1760318885142,-500.0,0.0001366,2]
[391088907,1760318885166,-500.0,0.0001366,2]
[391088908,1760318885189,-500.0,0.0001366,2]
[391088909,1760318885214,-500.0,0.0001366,2]
[391088910,1760318885240,-500.0,0.0001366,2]
[391088911,1760318885266,-500.0,0.0001366,2]
[391088912,1760318885290,-500.0,0.0001366,2]
[391088913,1760318885646,-212.98848844,0.0001366,2]
[391088914,1760318885673,-500.0,0.0001366,2]
[391088915,1760318885705,-500.0,0.0001366,2]
[391088916,1760318885733,-500.0,0.0001366,2]
[391088917,1760318885763,-500.0,0.0001366,2]
[391088918,1760318885791,-500.0,0.0001366,2]
[391088919,1760318885821,-500.0,0.0001366,2]
[391088920,1760318885850,-500.0,0.0001366,2]
[391088921,1760318885875,-500.0,0.0001366,2]
[391088922,1760318885900,-500.0,0.0001366,2]
[391088923,1760318885925,-500.0,0.0001366,2]
[391088924,1760318885952,-500.0,0.0001366,2]
[391088925,1760318885978,-450.0,0.0001366,2]
[391088926,1760318886006,-500.0,0.0001366,2]
[391088927,1760318886032,-32056.18579719,0.00013661,2]
[391088928,1760318890438,-20000.0,0.00013661,2]
[391088929,1760318891725,-20000.0,0.00013661,2]
[391088930,1760318893417,-20000.0,0.00013661,2]
[391088931,1760318904445,-3826.8205,0.00013661,2]
[391088936,1760318961867,-4181.65,0.00013488,2]
[391088937,1760318961892,-250.0,0.00013509,2]
[391088938,1760318961916,-2000.0,0.0001353,2]
[391088939,1760318961939,-184.52715246,0.00013573,2]
[391088940,1760318961963,-1133.09017291,0.00013611,2]
[391088941,1760318961989,-500.0,0.0001366,2]
[391088942,1760318962015,-500.0,0.0001366,2]
[391088943,1760318962045,-330.25352625,0.0001366,2]
[391088944,1760318962068,-10920.47914838,0.00013661,2]
[391088945,1760318964262,-20000.0,0.00013661,2]
[391088946,1760318974413,-20000.0,0.00013661,2]
[391088947,1760318976473,-20000.0,0.00013661,2]
[391088948,1760318987739,-322.84086306,0.00013661,2]
[391088949,1760318987762,-579.09653694,0.00013661,2]
[391088950,1760319009257,-300.0,0.0001366,2]
[391088951,1760319009284,-1200.0,0.0001366,2]
[391088952,1760319009316,-150.0,0.0001366,2]
[391088953,1760319009343,-2000.0,0.00013661,2]
[391088954,1760319009370,-49494.0,0.00013661,2]
[391088967,1760319031874,-692.9407555,0.00013656,2]
[391088968,1760319031884,-60426.96043266,0.00013661,2]
[391088969,1760319031897,-63854.15758483,0.00013661,2]
[391088970,1760319031907,-500.0,0.00013673,2]
[391088971,1760319031916,-500.0,0.00013673,2]
[391088972,1760319031926,-500.0,0.00013673,2]
[391088973,1760319031935,-500.0,0.00013673,2]
[391088974,1760319031945,-500.0,0.00013673,2]
[391088975,1760319031955,-500.0,0.00013673,2]
[391088976,1760319031968,-500.0,0.00013673,2]
[391088977,1760319031978,-431.91556503,0.00013673,2]
[391088978,1760319031988,-501.74934159,0.00013673,2]
[391088979,1760319031998,-500.0,0.00013673,2]
[391088980,1760319032009,-502.09984021,0.00013673,2]
[391088981,1760319032018,-901.67112327,0.00013691,2]
[391088982,1760319032033,-1136.05711476,0.00013691,2]
[391088983,1760319032043,-115.95631084,0.00013708,2]
[391088984,1760319032056,-417.88091739,0.00013708,2]
[391088985,1760319032091,-1105.35277177,0.00013708,2]
[391088986,1760319032101,-149.00896907,0.00013752,2]
[391088987,1760319032113,-7585.49996793,0.00013752,2]
[391088988,1760319032123,-1500.0,0.00013841,2]
[391088989,1760319032135,-610.0,0.00013913,2]
[391088990,1760319032144,-14509.27,0.00014006,2]
[391088991,1760319032154,-500.0,0.00014221,2]
[391088992,1760319032164,-500.0,0.00014221,2]
[391088993,1760319032173,-1000.0,0.00014221,2]
[391088994,1760319032184,-5251.56,0.00014289,2]
[391088995,1760319032193,-889.5266781,0.00014598,2]
[391088997,1760319032202,-645.68172612,0.00014607,2]
[391088999,1760319032212,-1000.0,0.0001465,2]
[391089001,1760319032223,-1092.1964897,0.00014699,2]
[391089002,1760319032233,-3745.72,0.00014712,2]
[391089003,1760319032242,-1289.4,0.00014716,2]
[391089004,1760319032252,-1104.7843,0.00014732,2]
[391089005,1760319032261,-157.49845869,0.00014736,2]
[391089006,1760319032273,-164.49905737,0.0001475,2]
[391089007,1760319032284,-1648.43483377,0.00014768,2]
[391089008,1760319032295,-255.0,0.00014781,2]
[391089009,1760319032305,-151.0,0.00014823,2]
[391089010,1760319032315,-151.0,0.00014823,2]
[391089011,1760319032325,-151.0,0.00014823,2]
[391089012,1760319032334,-151.0,0.00014823,2]
[391089013,1760319032344,-151.0,0.00014823,2]
[391089014,1760319032354,-151.0,0.00014823,2]
[391089015,1760319032364,-151.0,0.00014823,2]
[391089016,1760319032376,-151.0,0.00014823,2]
[391089017,1760319032386,-151.0,0.00014823,2]
[391089018,1760319032395,-151.0,0.00014823,2]
[391089019,1760319032404,-151.0,0.00014823,2]
[391089020,1760319032414,-151.0,0.00014823,2]
[391089021,1760319032423,-151.0,0.00014823,2]
[391089022,1760319032433,-151.0,0.00014823,2]
[391089023,1760319032443,-151.0,0.00014823,2]
[391089024,1760319032452,-151.0,0.00014823,2]
[391089025,1760319032462,-151.0,0.00014823,2]
[391089026,1760319032471,-151.0,0.00014823,2]
[391089027,1760319032481,-267.59518268,0.00014823,2]
[391089028,1760319032490,-151.0,0.00014823,2]
[391089029,1760319032499,-151.0,0.00014823,2]
[391089030,1760319032509,-151.0,0.00014823,2]
[391089031,1760319032518,-151.0,0.00014823,2]
[391089032,1760319032528,-151.0,0.00014823,2]
[391089033,1760319032537,-151.0,0.00014823,2]
[391089034,1760319032547,-500.0,0.00014823,2]
[391089035,1760319032556,-200.0,0.00014823,2]
[391089036,1760319032565,-500.0,0.00014823,2]
[391089037,1760319032575,-500.0,0.00014823,2]
[391089038,1760319032584,-500.0,0.00014823,2]
[391089039,1760319032593,-500.0,0.00014823,2]
[391089040,1760319032603,-200.0,0.00014823,2]
[391089041,1760319032613,-500.0,0.00014823,2]
[391089042,1760319032624,-273.47945372,0.00014823,2]
[391089043,1760319032633,-200.0,0.00014823,2]
[391089044,1760319032643,-1511.08,0.00014831,2]
[391089045,1760319032652,-150.0,0.00014831,2]
[391089046,1760319032662,-150.0,0.00014831,2]
[391089047,1760319032671,-150.0,0.00014831,2]
[391089048,1760319032681,-150.0,0.00014831,2]
[391089049,1760319032691,-150.0,0.00014831,2]
[391089050,1760319032701,-150.0,0.00014831,2]
[391089051,1760319032715,-150.0,0.00014831,2]
[391089052,1760319032724,-151.64198916,0.00014831,2]
[391089053,1760319032737,-95.97456411,0.00014831,2]
[391089054,1760319038098,-294.75802627,0.00014767,2]
[391089084,1760319041010,-205.24197373,0.00014767,2]
[391089085,1760319041019,-500.0,0.00014767,2]
[391089086,1760319041029,-500.0,0.00014767,2]
[391089087,1760319041038,-500.0,0.00014767,2]
[391089088,1760319041048,-500.0,0.00014767,2]